[Event "31st MPL National U18 Chess-ch 2022"]
[Site "Pollachi"]
[Date "2022.04.19"]
[Round "4.6"]
[White "Srihari L R"]
[Black "Chidvilash Sai Surapaneni"]
[Result "1-0"]
[ECO "A09"]
[WhiteElo "2400"]
[BlackElo "1753"]
[Annotator "TA"]
[PlyCount "65"]
[EventDate "2022.04.18"]
[EventCountry "IND"]
[SourceTitle "playchess.com"]
[Source "ChessBase"]
[SourceQuality "1"]
[TimeControl "5400+30"]

{[%evp 11,65,0,4,11,5,0,20,12,20,6,26,25,56,57,161,130,121,90,84,70,85,72,81,30,45,40,114,95,94,90,75,80,72,49,19,28,96,100,200,0,0,0,16,23,23,16,16,32,28,62,29981,29982,29982,29983,29983,29984]} 1. Nf3 {[%emt 0:00:37]} d5 {[%emt 0:00:31]} 2. c4 {[%emt 0:00:08]} d4 {[%emt 0:00:52]} 3. b4 {[%emt 1:31:15]} c5 {[%emt 0:00:51]} 4. e3 {[%emt 0:00:00]} dxe3 {[%emt 0:08:37]} 5. fxe3 {[%emt 0:00:00]} cxb4 {[%emt 0:00:30]} 6. d4 {[%emt 0:00:00]} e6 {[%emt 0:00:19]} 7. Bd3 {[%emt 0:00:00] A09: Réti Opening: 1 Nf3 d5 2 c4.} Nf6 {[%emt 0:02:18]} 8. O-O {[%emt 0:00:00]} Be7 {[%emt 0:01:12]} 9. Bb2 {[%emt 0:00:00][%mdl 1024] White has compensation. The position is equal.} O-O {[%emt 0:03:10]} 10. Qe2 {[%emt 0:00:00] [#]} Ne8 $146 {[%emt 0:08:17]} ({Predecessor:} 10... Nbd7 11. Nbd2 b6 12. e4 e5 13. Nb3 Qc7 14. dxe5 Ng4 15. e6 fxe6 16. e5 Bb7 {0-1 (43) Lubbers,J (1652)-Varela,M (1000) IECC email 2004}) 11. Nbd2 {[%emt 0:00:00]} f5 {[%emt 0:01:07]} 12. e4 {[%emt 0:00:00]} Kh8 {[%emt 0:04:28]} (12... g6 $14) 13. Rae1 $18 {[%emt 0:00:00]} Bf6 {[%emt 0:02:20]} 14. exf5 {[%emt 0:00:00]} exf5 {[%emt 0:00:12]} 15. Ne5 {[%emt 0:06:00][%cal Od2e4]} Nc6 {[%emt 0:01:05]} 16. Ndf3 {[%emt 0:00:30]} Nd6 {[%emt 0:13:32]} 17. d5 {[%emt 0:00:30]} (17. h4 $16) 17... Nxe5 $11 {[%emt 0:02:13]} 18. Nxe5 {[%emt 0:00:00]} (18. Bxe5 {is more complex.} b6 19. Nd4 Bxe5 20. Qxe5 Kg8 21. Bxf5 Nxf5 22. Ne6) 18... Nf7 {[%emt 0:16:24]} (18... Qc7 $14) 19. Bxf5 {[%emt 0:00:00] 0x0.002ceff46a05dp-1022s more active pieces. The black rooks are badly placed.} (19. Nxf7+ {feels hotter.} Rxf7 20. Qe8+ Rf8 21. Qxd8 Bxd8 22. c5) 19... Nxe5 {[%emt 0:00:47]} 20. Bxe5 {[%emt 0:00:00]} Bxe5 {[%emt 0:03:25]} 21. Qxe5 {[%emt 0:00:00] Hoping for Be4.} Bxf5 {[%emt 0:00:55]} 22. Rxf5 {[%emt 0:00:00]} Qb6+ $1 {[%emt 0:06:11]} 23. Kh1 {[%emt 0:00:00]} Rxf5 {[%emt 0:00:40]} (23... Qc5 $1 $11 {remains equal.}) 24. Qxf5 $40 {[%emt 0:00:00][%mdl 4224] Endgame KQR-KQR. White attacks with force.} Qc5 {[%emt 0:00:29]} (24... h6 $16 {was worth a try.}) 25. Qd7 $2 {[%emt 0:00:00]} (25. Qe6 $18 h6 26. d6) 25... Rf8 $1 {[%emt 0:06:45]} 26. h3 {[%emt 0:00:00] Black must now prevent d6.} Qxc4 {[%emt 0:00:11] [#]} 27. Qf7 $1 {[%emt 0:00:00][%cal Rf7f8]} Qc8 {[%emt 0:02:04]} 28. Qe7 {[%emt 0:00:00] aiming for d6.} h6 $1 {[%emt 0:03:31]} 29. d6 {[%emt 0:00:00][%cal Bd5d6,Bd6d7][%mdl 32] Threatening mate with d7.} Rd8 {[%emt 0:00:15] Prevents d7.} 30. Qf7 {[%emt 0:00:00] Re7 is the strong threat.} (30. Rf1 $5 {[%cal Rd6d7]} Kh7 31. Qe4+ Kh8 32. Qxb4 $14) 30... Rf8 $2 {[%emt 0:03:23][%mdl 8192] [#]} (30... Qc2 $14) 31. d7 $1 {[%emt 0:00:00][%mdl 512] White mates.} Qc5 {[%emt 0:01:20] [#]} 32. Qxf8+ $3 {[%emt 0:00:00][%mdl 576] Remove Defender, Promotion} Qxf8 {[%emt 0:00:01]} 33. Re8 {[%emt 0:00:00] Weighted Error Value: White=0.13 (very precise) /Black=0.31} 1-0

[Event "31st MPL National U18 Chess-ch 2022"]
[Site "Pollachi"]
[Date "2022.04.19"]
[Round "4.7"]
[White "Agarwal Mukund H"]
[Black "Avinash Ramesh"]
[Result "0-1"]
[ECO "B23"]
[WhiteElo "1611"]
[BlackElo "2402"]
[Annotator "TA"]
[PlyCount "98"]
[EventDate "2022.04.18"]
[EventCountry "IND"]
[SourceTitle "playchess.com"]
[Source "ChessBase"]
[SourceQuality "1"]
[TimeControl "5400+30"]

{[%evp 9,98,0,0,10,10,2,16,-14,-12,-25,-25,-13,10,4,7,8,16,16,24,9,12,15,16,15,27,18,21,18,27,33,46,41,47,54,60,60,71,63,67,56,58,0,108,109,105,10,11,0,0,0,0,-28,-4,-21,-13,-10,0,0,0,0,0,0,0,0,0,0,0,0,0,-56,-64,-58,18,15,14,14,13,13,12,-223,0,-687,-707,-29977,-29978,-29969,-6291,-29983,-29984,-29984,-29984]} 1. e4 {[%emt 0:00:01]} c5 {[%emt 0:00:30][%cal Bc7c5,Bc5d4][%mdl 32]} 2. Nc3 {[%emt 0:00:02]} Nc6 {[%emt 0:00:05]} 3. Bb5 {[%emt 0:00:02]} Nd4 {[%emt 0:00:06]} 4. Nf3 {[%emt 0:00:02]} a6 {[%emt 0:00:07]} 5. Bd3 {[%emt 0:00:58]} g6 {[%emt 0:03:29]} 6. Nxd4 {[%emt 0:00:57] B23: Closed Sicilian: Lines without g3.} cxd4 {[%emt 0:00:07]} 7. Ne2 {[%emt 0:00:02]} Bg7 {[%emt 0:00:06]} 8. O-O {[%emt 0:00:20] The position is equal.} d5 {[%emt 0:02:00]} 9. exd5 {[%emt 0:07:37]} Qxd5 {[%emt 0:00:14]} 10. c3 {[%emt 0:07:31]} dxc3 {[%emt 0:00:24]} 11. dxc3 {[%emt 0:00:09]} Nf6 {[%emt 0:00:09] [#]} 12. Bc2 $146 {[%emt 0:03:51]} (12. Nf4 {looks sharper.} Qc5 13. Qb3 O-O 14. Be3) ({Predecessor:} 12. Nf4 Qd6 13. Be2 Qc7 14. Bf3 O-O 15. Nd5 Nxd5 16. Qxd5 Rb8 17. Be3 Be5 18. g3 {½-½ (33) Kovalev,V (2634)-Maghsoodloo,P (2706) Dubai 2021}) 12... Qxd1 {[%emt 0:13:04]} 13. Rxd1 {[%emt 0:00:09]} O-O {[%emt 0:00:22]} 14. a4 {[%emt 0:01:43]} Bg4 {[%emt 0:00:23]} 15. f3 {[%emt 0:00:25]} Bd7 {[%emt 0:01:05]} 16. Be3 {[%emt 0:03:25]} Bc6 {[%emt 0:02:07]} 17. Nd4 {[%emt 0:03:45]} Bd5 {[%emt 0:01:15]} 18. a5 {[%emt 0:01:22]} Rfd8 {[%emt 0:07:51]} 19. Nb3 {[%emt 0:01:29]} e5 {[%emt 0:04:33]} 20. Bb6 {[%emt 0:03:47]} Rdc8 {[%emt 0:05:48]} 21. Nc5 {[%emt 0:11:38]} Bc6 {[%emt 0:00:41]} 22. Ba4 {[%emt 0:02:26]} Nd5 {[%emt 0:08:18][%cal Bf6d5,Bd5f4,Bf4d3,Bd3e1][%mdl 32]} 23. Bxc6 {[%emt 0:01:45]} bxc6 {[%emt 0:00:08]} 24. Kf2 {[%emt 0:09:26]} Rcb8 {[%emt 0:09:35]} 25. Nd7 {[%emt 0:00:37]} (25. Na4 $1 $14) 25... Re8 {[%emt 0:01:01]} (25... Rb7 $1 $11 {remains equal.} 26. Nc5 Rbb8) 26. c4 $16 {[%emt 0:01:55]} Nf4 {[%emt 0:03:13]} 27. Rd6 {[%emt 0:02:29]} (27. Be3 $16) 27... e4 $11 {[%emt 0:05:18]} 28. fxe4 {[%emt 0:00:59]} Rxe4 {[%emt 0:01:18]} 29. Rxc6 {[%emt 0:11:37]} Nd3+ {[%emt 0:08:06]} 30. Kf3 {[%emt 0:01:32]} Rae8 {[%emt 0:00:17]} 31. Ra3 {[%emt 0:11:22]} Ne1+ {[%emt 0:08:30]} 32. Kg3 {[%emt 0:00:35]} h5 {[%emt 0:01:02]} 33. Nf6+ {[%emt 0:01:31]} Bxf6 {[%emt 0:00:53]} 34. Rxf6 {[%emt 0:00:02]} Rg4+ {[%emt 0:04:23]} 35. Kf2 $1 {[%emt 0:02:10] aiming for Be3.} Kg7 {[%emt 0:00:19]} ({Don't take} 35... Rxc4 36. Re3 Rxe3 37. Bxe3 Nd3+ 38. Ke2 $16) ({But not} 35... Nxg2 36. h3 Rg5 37. b4 $16 (37. Rg3 Rxg3 38. Kxg3 Ne3 $16)) 36. Rd6 {[%emt 0:01:18] Hoping for Re3.} Rxg2+ {[%emt 0:01:03]} 37. Kf1 {[%emt 0:00:10]} Rxh2 {[%emt 0:03:32]} 38. Re3 {[%emt 0:00:36]} Rxe3 {[%emt 0:00:04]} ({Resist} 38... Rh1+ 39. Kf2 Rxe3 40. Bxe3 $16) 39. Bxe3 {[%emt 0:00:07][%mdl 4096] Endgame KRB-KRN} (39. Bd4+ $1 $11 f6 40. Bxe3) 39... Nf3 $15 {[%emt 0:00:03]} 40. Bf2 {[%emt 0:05:21] And now c5 would win.} g5 {[%emt 0:01:53]} (40... h4 $1 $15 41. Rd3 Ne5) 41. c5 $1 $11 {[%emt 0:00:57][%cal Bc4c5,Bc5c6][%mdl 1056] White has compensation.} g4 $1 {[%emt 0:00:01] White must now prevent ...h4.} 42. c6 $1 {[%emt 0:00:33]} Rh1+ {[%emt 0:00:18]} 43. Ke2 {[%emt 0:00:46]} Rc1 {[%emt 0:00:03]} 44. b4 $2 {[%emt 0:01:20] [#]} (44. Bb6 $11 h4 45. c7) 44... Rc2+ $2 {[%emt 0:00:25]} (44... h4 $1 $19 {Threatens to win with ...Rc2+.} 45. Be3 Rc2+ 46. Kd1 Rc4) 45. Kf1 $2 {[%emt 0:00:48][%mdl 8192]} (45. Kd1 $11 Rxf2 46. c7 Rf1+ 47. Kc2 Ne1+ 48. Kb3 Rf3+ 49. Kc4) 45... h4 $19 {[%emt 0:00:35]} 46. Rd4 {[%emt 0:03:11]} Nxd4 {[%emt 0:01:11]} 47. Bxd4+ {[%emt 0:00:01]} Kf8 {[%emt 0:00:06] ( -> ...h3)} 48. Bc5+ {[%emt 0:01:05] [#]} Rxc5 $1 {[%emt 0:00:08]} 49. bxc5 {[%emt 0:00:07]} Ke8 {[%emt 0:00:01] Weighted Error Value: White=0.60/Black=0.15 (very precise)} 0-1

[Event "31st MPL National U18 Chess-ch 2022"]
[Site "Pollachi"]
[Date "2022.04.19"]
[Round "4.8"]
[White "Ayushh Ravikumar"]
[Black "Nawin M S"]
[Result "1/2-1/2"]
[ECO "A59"]
[WhiteElo "2269"]
[BlackElo "1704"]
[Annotator "TA"]
[PlyCount "148"]
[EventDate "2022.04.18"]
[EventCountry "IND"]
[SourceTitle "playchess.com"]
[Source "ChessBase"]
[SourceQuality "1"]
[TimeControl "5400+30"]

{[%evp 23,148,60,60,34,13,-43,-18,-87,-91,-70,-56,-127,-128,-129,-12,0,0,0,-14,-8,0,0,0,0,0,0,0,0,0,0,0,0,0,0,-13,-11,0,0,0,0,0,0,0,0,0,0,0,0,0,0,0,0,0,0,0,0,0,0,30,30,37,30,30,30,30,30,30,8,10,0,0,0,0,0,0,0,0,-8,-12,-416,-386,-648,-710,-870,-837,-987,-599,-840,-810,-895,-628,-628,-628,-538,-150,-150,-143,-126,-135,-407,-325,-318,-312,-300,0,0,0,0,-1,-1,0,0,-6,-17,-17,-17,-17,-18,0,-32,0,-172,-172,-172,-172,-172,8]} 1. d4 {[%emt 0:00:48]} Nf6 {[%emt 0:00:26]} 2. Nf3 {[%emt 1:30:42]} g6 {[%emt 0:00:46]} 3. c4 {[%emt 0:00:00]} c5 {[%emt 0:00:50]} 4. d5 {[%emt 0:00:00]} b5 {[%emt 0:01:18]} 5. cxb5 {[%emt 0:00:00]} a6 {[%emt 0:00:01]} 6. bxa6 {[%emt 0:00:00]} Bxa6 {[%emt 0:00:19]} 7. Nc3 {[%emt 0:00:00]} d6 {[%emt 0:00:33]} 8. e4 {[%emt 0:00:00]} Bxf1 {[%emt 0:00:18]} 9. Kxf1 {[%emt 0:00:00]} Bg7 {[%emt 0:00:16]} 10. g3 {[%emt 0:00:00]} O-O {[%emt 0:00:16]} 11. Kg2 {[%emt 0:00:00]} Nbd7 {[%emt 0:00:23][%cal Bb8d7,Bd7e5,Be5d3][%mdl 32]} 12. Qc2 {[%emt 0:05:00] 12.a4 is becoming the main line.} Qb6 {[%emt 0:13:46]} 13. Nd2 {[%emt 0:00:00] A59: Benko/Volga Gambit: White castles by hand.} Qa6 {[%emt 1:17:48] [#]} 14. Rb1 $146 {[%emt 0:01:00]} (14. h3 $11) ({Predecessor:} 14. Nb3 Rfb8 15. Bd2 Ne5 16. Rhe1 Qd3 17. Qd1 Nc4 18. Bc1 Qxd1 19. Rxd1 Nd7 20. f4 f5 21. exf5 gxf5 22. Re1 Kf7 23. Re2 Rxb3 {0-1 (23) Letain,C (1699)-Babb,J (2132) Winnipeg 2017}) 14... Ne5 {[%emt 0:00:00]} (14... Ng4 $5 {[%cal Rf7f5]}) 15. b3 {[%emt 0:00:30]} (15. a3 $11) 15... Nfg4 $17 {[%emt 0:01:00]} 16. Rf1 {[%emt 0:00:30]} Qd3 {[%emt 0:00:00]} 17. Qxd3 {[%emt 0:00:00]} (17. Rb2 $1 $15) 17... Nxd3 {[%emt 0:00:00]} 18. Na4 {[%emt 0:00:00]} Bh6 {[%emt 0:00:00]} (18... Rfb8 $17 {White must now prevent ...Bd4.} 19. Bb2 Nxb2 20. Nxb2 Rxa2) 19. h3 $1 $11 {[%emt 0:00:00]} Nxc1 {[%emt 0:00:00][%mdl 64] Remove Defender} 20. Rbxc1 {[%emt 0:00:00]} Bxd2 {[%emt 0:00:00]} 21. Rc2 $132 {[%emt 0:00:00][%mdl 2048] [#] White is not keeping still} Nxf2 {[%emt 0:00:00]} 22. Rxf2 {[%emt 0:00:00]} Be3 {[%emt 0:00:00]} 23. Rfe2 {[%emt 0:00:00]} Bd4 {[%emt 0:00:00]} 24. Nb6 {[%emt 0:00:00]} Ra7 {[%emt 0:04:30]} 25. Nc4 {[%emt 0:00:00]} Rfa8 {[%emt 0:00:00]} 26. Nb6 {[%emt 0:00:00]} Rb8 {[%emt 0:00:00]} 27. Nc4 Rba8 28. Kf3 {[%emt 0:00:00]} f6 {[%emt 0:00:00]} 29. h4 {[%emt 0:06:30]} Kg7 {[%emt 0:00:00]} 30. g4 {[%emt 0:00:00]} Kf7 {[%emt 0:00:00]} 31. Rg2 {[%emt 0:00:00]} Rh8 {[%emt 0:00:00]} 32. h5 {[%emt 0:00:00]} h6 {[%emt 0:04:00]} 33. hxg6+ {[%emt 0:00:00]} Kxg6 {[%emt 0:00:00]} 34. Nd2 {[%emt 0:00:15]} Rha8 {[%emt 0:00:00]} 35. Nf1 {[%emt 0:02:45]} Be5 {[%emt 0:00:00]} 36. Ne3 {[%emt 0:00:00]} Ra3 {[%emt 0:00:00]} 37. Nc4 {[%emt 0:00:00]} R3a7 {[%emt 0:00:00]} 38. Ne3 {[%emt 0:01:30]} Ra3 {[%emt 0:00:00]} 39. Nf5 {[%emt 0:00:30]} R8a7 {[%emt 0:02:36]} 40. Rge2 c4 {[%emt 0:01:24]} 41. Rxc4 {[%emt 0:00:09]} Rxa2 {[%emt 0:00:00] [#]} 42. Nxe7+ $1 {[%emt 0:00:24]} Kg5 {[%emt 0:00:00]} 43. Rxa2 {[%emt 0:00:52]} Rxa2 {[%emt 0:01:30][%mdl 4096] Endgame KRB-KRN} 44. Rc8 {[%emt 0:00:30]} Rb2 {[%emt 0:00:30]} 45. Rb8 {[%emt 0:01:05] Threatens to win with Nf5.} Rb1 {[%emt 0:00:00]} 46. Nf5 {[%emt 0:00:30][%cal Rb8g8]} Rf1+ {[%emt 0:00:00]} 47. Ke3 {[%emt 0:00:00][%cal Rb8g8]} Re1+ $1 {[%emt 0:00:00]} 48. Kf3 {[%emt 0:00:24][%cal Rb8g8]} Rf1+ {[%emt 0:00:00]} 49. Ke2 {[%emt 0:00:28]} Rh1 {[%emt 0:00:09]} 50. Kd3 {[%emt 0:00:36]} Kxg4 {[%emt 0:02:51] Black wants to play ...h5.} 51. Rb6 $2 {[%emt 0:00:28][%mdl 8192]} (51. Rd8 $11) 51... h5 $1 $19 {[%emt 0:00:30] aiming for ...h4.} 52. Nxd6 $2 {[%emt 0:00:02]} (52. Rb8 Kf4 53. Ne7 Rh3+ 54. Ke2) 52... h4 $1 {And now ...h3 would win.} 53. Nf5 {[%emt 0:00:32]} h3 {[%emt 0:00:00] ...h2 is the strong threat.} 54. Ne3+ Kg5 {[%emt 0:00:27]} 55. d6 {[%emt 0:02:00] Hoping for d7.} h2 {[%emt 0:01:33]} 56. d7 {[%emt 0:00:00]} Bc7 {[%emt 0:00:00]} 57. Rb5+ {[%emt 0:01:00]} Kg6 {[%emt 0:00:00]} 58. Rc5 {[%emt 0:00:00] [#]} Bd8 {[%emt 0:00:31]} (58... Rb1 $1 $19 {is more deadly.} 59. Rxc7 h1=Q) 59. Rc8 $17 {[#]} Rd1+ $3 {[%emt 0:01:29][%mdl 576] Skewer} 60. Nxd1 {[%emt 0:00:23] Intending Nf2 and mate.} h1=Q {[%emt 0:00:30]} 61. Ne3 $2 {[%emt 0:01:03][%mdl 8192]} (61. Rxd8 $17 Qxd1+ 62. Kc4) 61... Qb1+ {[%emt 0:00:00]} 62. Ke2 {[%emt 0:00:27] [#]} Qa2+ $1 {[%emt 0:00:18]} 63. Kf3 {[%emt 0:00:12] [#]} Be7 $2 {[%emt 0:00:16]} ({Black should try} 63... Qa5 $1 $19 {[%cal Ra5h5]} 64. Nd5 f5) 64. d8=Q {Chess con chili.} Bxd8 65. Rxd8 {[%emt 0:00:52]} Qxb3 $11 {[%emt 0:01:56] KQ-KRN} 66. Rd5 {[%emt 0:00:09]} Qb1 {[%emt 0:00:00]} 67. Rf5 {[%emt 0:00:39]} Qh1+ {[%emt 0:01:00]} 68. Ng2 {[%emt 0:00:55]} Qf1+ {[%emt 0:00:00]} 69. Kg3 {[%emt 0:00:06]} Qd3+ {[%emt 0:00:00]} 70. Kf4 {[%emt 0:00:38]} Qf1+ {[%emt 0:00:00]} 71. Kg3 {[%emt 0:00:07]} Qd3+ {[%emt 0:00:00]} 72. Kg4 $2 {[%emt 0:00:36]} (72. Kf4 $11) 72... Qxe4+ $19 {[%emt 0:00:37] Black is clearly better.} 73. Nf4+ {[%emt 0:01:53]} Kg7 {[%emt 0:00:45]} 74. Rd5 {[%emt 0:00:00]} Qxd5 $2 {[%emt 0:00:12] Weighted Error Value: White=0.42/Black=0.34} 1/2-1/2

[Event "31st MPL National U18 Chess-ch 2022"]
[Site "Pollachi"]
[Date "2022.04.19"]
[Round "4.9"]
[White "Manish Anto Cristiano F"]
[Black "Shadhursshaan R"]
[Result "1-0"]
[ECO "A30"]
[WhiteElo "2236"]
[BlackElo "1633"]
[Annotator "TA"]
[PlyCount "61"]
[EventDate "2022.04.18"]
[EventCountry "IND"]
[SourceTitle "playchess.com"]
[Source "ChessBase"]
[SourceQuality "1"]
[TimeControl "5400+30"]

{[%evp 15,61,40,58,58,49,49,68,45,56,59,59,64,97,67,57,58,53,68,125,127,122,108,143,156,212,181,182,170,240,263,348,335,684,681,675,676,794,785,833,840,1292,1297,1745,1420,1698,2118,1989,1321]} 1. d4 {[%emt 0:00:03]} Nf6 {[%emt 1:31:00]} 2. c4 e6 {[%emt 0:00:30]} 3. Nf3 b6 {[%emt 0:00:30]} 4. g3 {[%emt 0:01:26]} Bb7 5. Bg2 {[%emt 1:31:31]} c5 {[%emt 0:01:00]} 6. O-O {[%emt 0:00:30]} Be7 {[%emt 0:00:30]} 7. d5 {[%emt 0:00:30]} exd5 {[%emt 0:00:30]} 8. Nh4 {[%emt 0:00:30]} O-O {[%emt 0:00:00]} 9. cxd5 {Hoping for d6. A30: Symmetrical English: Double Fianchetto and Hedgehog.} d6 {[%emt 0:00:00]} 10. Nf5 Re8 {[%emt 0:01:30]} 11. Nxe7+ {[%emt 0:00:00] White is slightly better.} Qxe7 {[%emt 0:00:30]} 12. Nc3 {[%emt 0:02:00]} Ba6 {[%emt 0:00:00][%cal Ra6e2]} 13. Re1 b5 {[%emt 0:01:00]} 14. a4 {[%emt 0:01:00]} b4 {[%emt 0:00:00]} 15. Nb5 {[#]} Bxb5 $146 {[%emt 0:01:00]} ({Predecessor:} 15... Bb7 16. Bf4 Rd8 17. e4 a6 18. Nxd6 Rxd6 19. Bxd6 Qxd6 20. e5 Qb6 21. exf6 Nd7 22. fxg7 Nf6 23. Re7 Rd8 24. a5 Qb5 25. Qf3 {1-0 (25) Eidelson,R (2251)-Tereshkova,M (1903) Minsk 2012}) 16. axb5 {[%emt 0:01:00]} Nbd7 {[%emt 0:00:00] [#] White now steadily converts the win.} (16... a5 $14) 17. e4 $1 $16 Nb6 {[%emt 0:01:00][%cal Of6d5]} 18. e5 {[%emt 0:01:00] Threatens to win with Bf4.} dxe5 {[%emt 0:00:30]} 19. d6 {[%emt 0:00:00]} Qd8 {[%emt 0:00:30]} (19... Qe6 $16) 20. Bxa8 {[%emt 0:01:00]} Qxa8 {[%emt 0:00:00]} 21. Be3 Nbd7 {[%emt 0:01:00]} (21... Nfd7 {keeps fighting.} 22. Qb3 h5) 22. Qa4 $18 {[%emt 0:01:00]} h5 {[%emt 0:00:30]} 23. Bg5 {[%emt 0:00:30]} Ne4 $2 {[%emt 0:00:00] [#]} (23... Re6 24. Red1 Qf3) 24. Qxa7 $1 {White is clearly winning.} Qxa7 {[%emt 0:01:00]} 25. Rxa7 {[%emt 0:01:00]} Nxg5 {[%emt 0:00:30]} 26. Rxd7 {[%emt 0:00:00] KRR-KRN} Nf3+ {[%emt 0:00:00]} 27. Kf1 {[%emt 0:00:00]} Nxe1 {[%emt 0:00:00]} 28. Kxe1 {[%emt 0:00:00]} Rb8 {[%emt 0:01:30]} 29. Rc7 {[%emt 0:00:00] aiming for d7.} Kf8 {[%emt 0:00:00]} 30. b6 {[%emt 0:00:00][%cal Bb5b6,Bb6b7][%mdl 32] Threatening mate with b7.} Ke8 {[%emt 0:00:00]} 31. b7 {[%emt 0:00:00] Weighted Error Value: White=0.05 (flawless) /Black=0.49} 1-0

[Event "31st MPL National U18 Chess-ch 2022"]
[Site "Pollachi"]
[Date "2022.04.19"]
[Round "4.10"]
[White "Gandhi, Aakash"]
[Black "Rakshith Srinivasan"]
[Result "1/2-1/2"]
[ECO "E61"]
[WhiteElo "1698"]
[BlackElo "1856"]
[Annotator "NA RC"]
[PlyCount "92"]
[EventDate "2022.04.18"]
[EventCountry "IND"]
[SourceTitle "playchess.com"]
[Source "ChessBase"]
[SourceQuality "1"]
[TimeControl "5400+30"]

1. d4 {[%emt 0:00:30]} Nf6 {[%emt 1:31:00]} 2. c4 g6 3. Nc3 {[%emt 0:00:55]} Bg7 {[%emt 0:01:00]} 4. Nf3 {[%emt 0:00:23]} O-O {[%emt 0:00:30]} 5. Bg5 {[%emt 1:31:12]} d6 {[%emt 0:00:30]} 6. e3 {[%emt 0:00:30]} Nbd7 {[%emt 0:00:00]} 7. Be2 h6 8. Bh4 c6 9. O-O g5 10. Bg3 Nh5 {[%emt 0:00:00]} 11. Qc2 Nxg3 {[%emt 0:00:00]} 12. hxg3 {[%emt 0:00:00]} e5 {[%emt 0:00:00]} 13. Rad1 {[%emt 0:00:00]} Qe7 14. Bd3 {[%emt 0:00:00]} Nf6 15. c5 dxc5 {[%emt 0:00:00]} 16. Nxe5 Ng4 17. Nxg4 {[%emt 0:00:00]} Bxg4 18. f3 {[%emt 0:00:00]} Be6 {[%emt 0:00:00]} 19. dxc5 Qxc5 {[%emt 0:00:00]} 20. Qf2 {[%emt 0:00:00]} Rad8 {[%emt 0:00:00]} 21. Qe2 {[%emt 0:00:00]} (21. Bb1 $142) 21... Rd7 {[%emt 0:00:00]} ({Black should try} 21... Bxc3 $17 22. Rc1 {[#]} Qxe3+ $1 23. Qxe3 Bd4 24. Qxd4 (24. Bh7+ $2 Kxh7 25. Qxd4 Rxd4 $19) 24... Rxd4) 22. f4 {[%emt 0:08:00]} (22. Ne4 $11 {keeps the balance.} Qb4 23. b3) 22... gxf4 {[%emt 0:00:00]} ({Black should play} 22... Bxc3 $17 23. bxc3 Qxc3) 23. gxf4 {[%emt 0:00:00]} f5 {[%emt 0:09:00]} 24. Rc1 {[%emt 0:00:00]} Qe7 {[%emt 0:00:00]} 25. Na4 {[%emt 0:00:00]} (25. Rfd1 $11) 25... Bd5 {[%emt 0:00:00]} ({Don't play} 25... Bxa2 $6 26. Nc5 Rd6 27. b3 $11) ({Better is} 25... Rd6 $17 26. Nc3 b5) 26. Nc5 {[%emt 0:00:00] [#]} (26. Nc3 $11) 26... Rd6 $1 {[%emt 0:00:00]} 27. Bc4 {[%emt 0:00:00]} Re8 {[%emt 0:00:00]} (27... Bxc4 $17 28. Rxc4 (28. Qxc4+ Rd5 $17) 28... Re8) 28. Rf3 {[%emt 0:00:00] [#]} (28. Rfe1 $1 $15) 28... b6 {[%emt 0:00:00]} ({Black should play} 28... Bd4 $1 $17 {[%cal Rd4c5]} 29. exd4 Qxe2 30. Bxe2 Rxe2) 29. Nb3 {[%emt 0:00:00]} Re6 {[%emt 0:00:00]} ({Better is} 29... c5 $15) 30. Bxd5 {[%emt 0:00:00]} cxd5 {[%emt 0:00:00]} 31. Qd3 {[%emt 0:00:00]} Rxe3 {[%emt 0:00:00]} 32. Qxd5+ {[%emt 0:00:00]} ({Better is} 32. Qxf5 $11 Kh8 33. Qxd5) 32... Kh8 {[%emt 0:00:00]} 33. Rcf1 {[%emt 0:00:00]} Rxf3 {[%emt 0:00:00]} 34. Rxf3 {[%emt 0:00:00]} Qe1+ {[%emt 0:00:00]} ({Don't play} 34... Bxb2 $6 35. Qxf5 Bf6 36. Kh2 $11) 35. Rf1 {[%emt 0:00:00]} Qe4 {[%emt 0:00:00]} 36. Qd7 {[%emt 0:00:00]} a5 {[%emt 0:00:00]} 37. Kh2 {[%emt 0:00:00]} Bxb2 {[%emt 0:00:00]} 38. Rf3 {[%emt 0:00:00]} Bg7 {[%emt 0:00:00]} 39. Rg3 {[%emt 0:00:00]} (39. Nd2 $15 Qe6 40. Qxe6 Rxe6 41. Rd3) 39... Rg8 {[%emt 0:00:00]} 40. Qc7 {[%emt 0:00:00]} Qe6 {[%emt 0:00:00]} 41. Nd2 {[%emt 0:00:00]} Qe1 {[%emt 0:00:00]} 42. Qd7 $1 {[%emt 0:00:00]} Qd1 {[%emt 0:00:00]} ({Don't play} 42... Qf2 43. Nf3 Bf6 44. Rxg8+ Kxg8 45. Qxf5 $14) 43. Qd6 {[%emt 0:00:00]} b5 {[%emt 0:00:00]} 44. a3 {[%emt 0:00:00]} a4 {[%emt 0:10:30]} 45. Rf3 {[%emt 0:00:00]} Qe1 {[%emt 0:00:00]} 46. Rh3 {[%emt 0:00:00]} Re8 $11 {[%emt 0:00:00]} 1/2-1/2